fUSD/lending_fUSD_20260107
["ID","MTS","AMOUNT","RATE_DAILY","PERIOD"]
[400756828,1767817832950,-569.55560125,0.00015175,2]
[400756829,1767817832959,-166.66,0.00015187,2]
[400756830,1767817832969,-1002.29010168,0.00015198,2]
[400756831,1767817832978,-3497.618,0.00015198,2]
[400756832,1767817832988,-212.514,0.00015198,2]
[400756833,1767817832997,-999.99,0.00015198,2]
[400756834,1767817833007,-28648.01,0.00015199,2]
[400756835,1767817833016,-9999.99,0.00015199,2]
[400756836,1767817833026,-150.99,0.00015199,2]
[400756837,1767817833035,-9999.99,0.00015199,2]
[400756838,1767817833046,-1197.25,0.00015199,2]
[400756839,1767817833055,-9999.99,0.00015199,2]
[400756840,1767817833065,-200.0,0.0001521,2]
[400756841,1767817833074,-500.0,0.0001521,2]
[400756842,1767817833084,-500.0,0.0001521,2]
[400756843,1767817833093,-409.25139494,0.0001521,2]
[400756844,1767817833103,-322.77273588,0.0001521,2]
[400756845,1767817833112,-151.0,0.0001521,2]
[400756846,1767817833122,-151.0,0.0001521,2]
[400756847,1767817833132,-151.0,0.0001521,2]
[400756848,1767817833141,-151.0,0.0001521,2]
[400756849,1767817833151,-151.0,0.0001521,2]
[400756850,1767817833160,-151.0,0.0001521,2]
[400756851,1767817833170,-151.0,0.0001521,2]
[400756852,1767817833179,-151.0,0.0001521,2]
[400756853,1767817833188,-151.0,0.0001521,2]
[400756854,1767817833198,-151.0,0.0001521,2]
[400756855,1767817833210,-151.0,0.0001521,2]
[400756856,1767817833219,-1068.29795687,0.00015218,2]
[400756857,1767817833229,-500.0,0.00015218,2]
[400756858,1767817833238,-500.0,0.00015218,2]
[400756859,1767817833248,-531.52006841,0.00015218,2]
[400756860,1767817833257,-500.0,0.00015218,2]
[400756861,1767817833268,-500.0,0.00015218,2]
[400756862,1767817833277,-500.0,0.00015218,2]
[400756863,1767817833286,-500.0,0.00015218,2]
[400756864,1767817833297,-500.0,0.00015218,2]
[400756865,1767817833306,-500.0,0.00015218,2]
[400756866,1767817833315,-432.08473811,0.00015218,2]
[400756867,1767817833325,-500.0,0.00015218,2]
[400756868,1767817833334,-500.0,0.00015218,2]
[400756869,1767817833345,-500.0,0.00015218,2]
[400756870,1767817833354,-500.0,0.00015218,2]
[400756871,1767817833364,-166.66,0.00015275,2]
[400756872,1767817833373,-321.7,0.00015278,2]
[400756873,1767817833383,-1517.64,0.000153,2]
[400756874,1767817833392,-522.46913605,0.00015347,2]
[400756875,1767817833402,-1623.07,0.00015347,2]
[400756876,1767817833412,-1100.0,0.00015439,2]
[400756877,1767817833421,-12301.6933758,0.00015478,2]
[400756878,1767817833431,-35734.40432954,0.00015511,2]
[400756879,1767817833441,-569.55560122,0.00015564,2]
[400756880,1767817833450,-166.49390426,0.00015621,2]
[400756881,1767817833460,-1000.0,0.00015621,2]
[400756882,1767817833469,-1000.0,0.00015621,2]
[400756883,1767817833478,-1000.0,0.00015621,2]
[400756884,1767817833487,-500.0,0.00015621,2]
[400756885,1767817833498,-1000.0,0.00015621,2]
[400756886,1767817833507,-1000.0,0.00015621,2]
[400756887,1767817833516,-1000.0,0.00015621,2]
[400756888,1767817833526,-1001.43294385,0.00015621,2]
[400756889,1767817833535,-564.80231149,0.00015621,2]
[400756890,1767817833546,-1000.0,0.00015621,2]
[400756891,1767817833556,-1000.0,0.00015621,2]
[400756892,1767817833567,-1000.0,0.00015621,2]
[400756893,1767817833577,-1000.0,0.00015621,2]
[400756894,1767817833587,-1000.0,0.00015621,2]
[400756895,1767817833597,-811.64161933,0.00015621,2]
[400756896,1767817833607,-1000.0,0.00015621,2]
[400756897,1767817833617,-331.79442927,0.00015621,2]
[400756898,1767817833627,-500.0,0.00015621,2]
[400756899,1767817833637,-1000.0,0.00015621,2]
[400756900,1767817833647,-539.72633275,0.00015621,2]
[400756901,1767817833656,-1000.0,0.00015621,2]
[400756902,1767817833667,-1000.0,0.00015621,2]
[400756903,1767817833676,-1000.0,0.00015621,2]
[400756904,1767817833686,-1000.0,0.00015621,2]
[400756905,1767817833696,-438.43604995,0.00015621,2]
[400756906,1767817833706,-1019.44971303,0.00015621,2]
[400756907,1767817833715,-1000.0,0.00015621,2]
[400756908,1767817833726,-1000.0,0.00015621,2]
[400756909,1767817833739,-1000.0,0.00015621,2]
[400756910,1767817833749,-1000.0,0.00015621,2]
[400756911,1767817833759,-237.23316124,0.00015621,2]
[400756912,1767817833769,-1623.07,0.00015621,2]
[400756913,1767817833779,-151.0,0.00015651,2]
[400756914,1767817833788,-151.0,0.00015653,2]
[400756915,1767817833798,-151.0,0.00015662,2]
[400756916,1767817833808,-151.0,0.00015662,2]
[400756917,1767817833818,-151.0,0.00015662,2]
[400756918,1767817833828,-151.0,0.00015662,2]
[400756919,1767817833837,-151.0,0.00015663,2]
[400756920,1767817833847,-151.0,0.00015663,2]
[400756921,1767817833856,-1068.29795681,0.00015665,2]
[400756922,1767817833865,-166.66,0.00015688,2]
[400756923,1767817833875,-609.83029456,0.00015758,2]
[400756924,1767817833884,-12301.6933758,0.00015781,2]
[400756925,1767817833894,-65307.46993447,0.000158,2]
[400756926,1767817834490,-20401.17864591,0.000158,2]
[400756927,1767817834502,-7786.86614389,0.000158,2]
[400756928,1767817834511,-2045.30003102,0.00015807,2]
[400756929,1767817834521,-1623.07,0.00015895,2]
[400756930,1767817834531,-1033.79731438,0.000159,2]
[400756931,1767817834541,-1033.79731438,0.000159,2]
[400756932,1767817834551,-583.61900327,0.000159,2]
[400756933,1767817834585,-450.17831111,0.000159,2]
[400756934,1767817834594,-1032.72321949,0.000159,2]
[400756935,1767817834606,-1.07409489,0.000159,2]
[400756936,1767817834615,-1014.08878391,0.000159,2]
[400757075,1767817839157,-151.0,0.00015846,2]
[400757077,1767817839167,-151.0,0.00015846,2]
[400757079,1767817839176,-2236.06382179,0.000159,2]
[400757081,1767817839188,-3064.49199917,0.000159,2]
[400757083,1767817839200,-6341.7820738,0.000159,2]
[400757085,1767817839211,-22930.71980492,0.000159,2]
[400757092,1767817839266,-13250.9320479,0.000159,2]
[400757094,1767817839277,-569.55560122,0.00015954,2]
[400757096,1767817839287,-132747.14261672,0.00016,2]
[400757098,1767817839296,-142992.67333596,0.00016,4]
[400757100,1767817839306,-249.063448,0.00016,2]
[400757102,1767817839316,-322.6107,0.00016013,2]
[400757104,1767817839326,-500.0,0.00016013,2]
[400757106,1767817839336,-1500.0,0.00016013,2]
[400757108,1767817839345,-500.0,0.00016013,2]
[400757110,1767817839354,-200.0,0.00016013,2]
[400757112,1767817839363,-1500.0,0.00016013,2]
[400757114,1767817839372,-207.4,0.00016013,2]
[400757116,1767817839382,-500.0,0.00016013,2]
[400757118,1767817839392,-1500.0,0.00016013,2]
[400757120,1767817839401,-500.0,0.00016013,2]
[400757122,1767817839410,-215.0738,0.00016013,2]
[400757124,1767817839419,-500.0,0.00016013,2]
[400757126,1767817839429,-223.0315306,0.00016013,2]
[400757128,1767817839439,-1500.0,0.00016013,2]
[400757130,1767817839448,-500.0,0.00016013,2]
[400757132,1767817839457,-231.28369723,0.00016013,2]
[400757134,1767817839466,-1500.0,0.00016013,2]
[400757136,1767817839475,-500.0,0.00016013,2]
[400757138,1767817839484,-500.0,0.00016013,2]
[400757140,1767817839493,-239.84119403,0.00016013,2]
[400757142,1767817839502,-1500.0,0.00016013,2]
[400757144,1767817839511,-500.0,0.00016013,2]
[400757146,1767817839520,-248.71531821,0.00016013,2]
[400757148,1767817839529,-500.0,0.00016013,2]
[400757150,1767817839539,-1500.0,0.00016013,2]
[400757152,1767817839550,-500.0,0.00016013,2]
[400757154,1767817839559,-257.91778498,0.00016013,2]
[400757156,1767817839569,-500.0,0.00016013,2]
[400757158,1767817839579,-1500.0,0.00016013,2]
[400757160,1767817839588,-500.0,0.00016013,2]
[400757162,1767817839598,-267.46074303,0.00016013,2]
[400757164,1767817839607,-500.0,0.00016013,2]
[400757166,1767817839617,-1500.0,0.00016013,2]
[400757168,1767817839626,-500.0,0.00016013,2]
[400757170,1767817839636,-277.35679052,0.00016013,2]
[400757172,1767817839647,-500.0,0.00016013,2]
[400757174,1767817839657,-1500.0,0.00016013,2]
[400757176,1767817839667,-574.12855637,0.00016013,2]
[400757178,1767817839676,-500.0,0.00016013,2]
[400757180,1767817839685,-1500.0,0.00016013,2]
[400757182,1767817839695,-500.0,0.00016013,2]
[400757184,1767817839704,-500.0,0.00016013,2]
[400757186,1767817839714,-500.0,0.00016013,2]
[400757188,1767817839723,-500.0,0.00016013,2]
[400757190,1767817839736,-500.0,0.00016013,2]
[400757192,1767817839746,-500.0,0.00016013,2]
[400757194,1767817839755,-500.0,0.00016013,2]
[400757197,1767817839765,-500.0,0.00016013,2]
[400757198,1767817839775,-448.72451731,0.00016013,2]
[400757201,1767817839784,-500.0,0.00016013,2]
[400757203,1767817839794,-500.0,0.00016013,2]
[400757205,1767817839806,-620.0,0.00016013,2]
[400757207,1767817839815,-500.0,0.00016013,2]
[400757209,1767817839825,-500.0,0.00016013,2]
[400757211,1767817839834,-500.0,0.00016013,2]
[400757213,1767817839843,-500.0,0.00016013,2]
[400757215,1767817839853,-500.0,0.00016013,2]
[400757217,1767817839863,-500.0,0.00016013,2]
[400757219,1767817839872,-2000.0,0.00016013,2]
[400757221,1767817839881,-2000.0,0.00016013,2]
[400757223,1767817839891,-2000.0,0.00016013,2]
[400757225,1767817839900,-2000.0,0.00016013,2]
[400757227,1767817839909,-151.55763012,0.00016013,2]
[400757229,1767817839919,-2000.0,0.00016013,2]
[400757231,1767817839928,-2000.0,0.00016013,2]
[400757233,1767817839937,-578.20924308,0.00016013,2]
[400757235,1767817839946,-2000.0,0.00016013,2]
[400757237,1767817839956,-2000.0,0.00016013,2]
[400757239,1767817839965,-2000.0,0.00016013,2]
[400757240,1767817839975,-2000.0,0.00016013,2]
[400757241,1767817839985,-2000.0,0.00016013,2]
[400757242,1767817839994,-250.0,0.00016013,2]
[400757243,1767817840004,-250.0,0.00016013,2]
[400757244,1767817840013,-1000.0,0.00016016,2]
[400757245,1767817840022,-598.13483997,0.0001604,2]
[400757246,1767817840031,-482.63,0.00016082,2]
[400757247,1767817840040,-482.63,0.00016082,2]
[400757248,1767817840050,-482.63,0.00016082,2]
[400757249,1767817840059,-482.63,0.00016082,2]
[400757250,1767817840068,-482.63,0.00016082,2]
[400757251,1767817840077,-482.63,0.00016082,2]
[400757252,1767817840086,-321.7,0.00016083,2]
[400757253,1767817840096,-12301.6933758,0.00016083,2]
[400757254,1767817840105,-1068.29795681,0.00016112,2]
[400757255,1767817840114,-300.0,0.00016114,2]
[400757256,1767817840123,-300.0,0.00016144,2]
[400757257,1767817840132,-1623.07,0.00016168,2]
[400757259,1767817840141,-1500.0,0.00016168,2]
[400757261,1767817840150,-821.82288534,0.00016168,2]
[400757263,1767817840159,-515.65451742,0.00016168,2]
[400757265,1767817840168,-949.69083076,0.00016168,2]
[400757267,1767817840178,-1500.0,0.00016168,2]
[400757269,1767817840187,-1500.0,0.00016168,2]
[400757271,1767817840196,-411.91622264,0.00016168,2]
[400757273,1767817840205,-1529.13192156,0.00016168,2]
[400757275,1767817840214,-556.0741427,0.00016168,2]
[400757277,1767817840224,-502.16378022,0.00016168,2]
[400757279,1767817840233,-1000.73448024,0.00016168,2]
[400757281,1767817840242,-1509.96734995,0.00016168,2]
[400757283,1767817840251,-1500.0,0.00016168,2]
[400757285,1767817840260,-1500.0,0.00016168,2]
[400757287,1767817840269,-1500.0,0.00016168,2]
[400757289,1767817840279,-413.08976684,0.00016168,2]
[400757291,1767817840288,-1500.0,0.00016168,2]
[400757293,1767817840297,-1500.0,0.00016168,2]
[400757295,1767817840307,-1500.0,0.00016168,2]
[400757297,1767817840316,-1500.0,0.00016168,2]
[400757299,1767817840326,-1628.37348131,0.00016168,2]
[400757301,1767817840336,-166.66,0.00016189,2]
[400757303,1767817840345,-712.65789171,0.00016195,2]
[400757305,1767817840354,-5000.00325986,0.000162,5]
[400757307,1767817840364,-510.0,0.00016202,2]
[400757309,1767817840373,-500.0,0.00016219,2]
[400757311,1767817840382,-300.0,0.00016228,2]
[400757313,1767817840392,-500.0,0.00016234,2]
[400757315,1767817840402,-300.0,0.00016247,2]
[400757317,1767817840411,-1100.0,0.00016252,2]
[400757319,1767817840420,-500.0,0.00016266,2]
[400757321,1767817840429,-300.0,0.00016273,2]
[400757323,1767817840439,-300.0,0.00016336,2]
[400757325,1767817840449,-300.0,0.00016339,2]
[400757328,1767817840459,-200.0,0.0001634,2]
[400757330,1767817840471,-569.55560122,0.00016343,2]
[400757332,1767817840480,-12301.6933758,0.00016386,2]
[400757334,1767817840490,-5109.45441568,0.00016409,2]
[400757336,1767817840499,-500.0,0.00016437,2]
[400757338,1767817840509,-500.0,0.00016437,2]
[400757340,1767817840518,-1107.97878751,0.00016438,2]
[400757342,1767817840527,-1107.97878751,0.00016438,2]
[400757344,1767817840536,-1107.97878751,0.00016438,2]
[400757346,1767817840546,-1107.97878751,0.00016438,2]
[400757348,1767817840555,-1107.97878751,0.00016438,2]
[400757350,1767817840564,-1107.97878751,0.00016438,2]
[400757352,1767817840573,-1107.97878751,0.00016438,2]
[400757354,1767817840583,-1107.97878751,0.00016438,2]
[400757356,1767817840593,-1107.97878751,0.00016438,2]
[400757358,1767817840602,-1107.97878751,0.00016438,2]
[400757360,1767817840612,-1107.97878751,0.00016438,2]
[400757362,1767817840621,-1107.97878751,0.00016438,2]
[400757364,1767817840630,-1107.97878751,0.00016438,2]
[400757366,1767817840639,-1107.97878751,0.00016438,2]
[400757367,1767817840648,-1107.97878751,0.00016438,2]
[400757369,1767817840658,-1107.97878751,0.00016438,2]
[400757371,1767817840668,-1107.97878751,0.00016438,2]
[400757374,1767817840677,-1107.97878751,0.00016438,2]
[400757375,1767817840687,-1107.97878751,0.00016438,2]
[400757377,1767817840696,-1107.97878751,0.00016438,2]
[400757379,1767817840706,-1107.97878751,0.00016438,2]
[400757381,1767817840715,-1107.97878751,0.00016438,2]
[400757383,1767817840725,-1107.97878751,0.00016438,2]
[400757385,1767817840742,-1107.97878751,0.00016438,2]
[400757387,1767817840752,-1107.97878751,0.00016438,2]
[400757389,1767817840762,-1107.97878751,0.00016438,2]
[400757391,1767817840771,-1107.97878751,0.00016438,2]
[400757393,1767817840782,-1107.97878751,0.00016438,2]
[400757395,1767817840791,-1107.97878751,0.00016438,2]
[400757397,1767817840802,-1107.97878751,0.00016438,2]
[400757399,1767817840815,-1107.97878751,0.00016438,2]
[400757402,1767817840834,-1107.97878751,0.00016438,2]
[400757403,1767817840843,-1107.97878751,0.00016438,2]
[400757405,1767817840852,-1107.97878751,0.00016438,2]
[400757407,1767817840862,-1107.97878751,0.00016438,2]
[400757409,1767817840871,-1107.97878751,0.00016438,2]
[400757411,1767817840880,-1107.97878751,0.00016438,2]
[400757414,1767817840890,-1107.97878751,0.00016438,2]
[400757416,1767817840899,-1107.97878751,0.00016438,2]
[400757418,1767817840909,-1107.97878751,0.00016438,2]
[400757420,1767817840918,-1107.97878751,0.00016438,2]
[400757422,1767817840927,-1107.97878751,0.00016438,2]
[400757424,1767817840936,-1107.97878751,0.00016438,2]
[400757426,1767817840945,-1107.97878751,0.00016438,2]
[400757428,1767817840955,-1107.97878751,0.00016438,2]
[400757430,1767817840964,-1107.97878751,0.00016438,2]
[400757432,1767817840974,-1107.97878751,0.00016438,2]
[400757434,1767817840983,-1094.46685109,0.00016438,2]
[400757436,1767817840994,-1094.46685109,0.00016438,2]
[400757438,1767817841003,-1094.46685109,0.00016438,2]
[400757440,1767817841012,-1094.46685109,0.00016438,2]
[400757442,1767817841029,-1094.46685109,0.00016438,2]
[400757444,1767817841041,-1094.46685109,0.00016438,2]
[400757446,1767817841063,-1094.46685109,0.00016438,2]
[400757448,1767817841077,-1094.46685109,0.00016438,2]
[400757450,1767817841086,-1094.46685109,0.00016438,2]
[400757452,1767817841095,-1094.46685109,0.00016438,2]
[400757454,1767817841105,-1094.46685109,0.00016438,2]
[400757456,1767817841115,-1094.46685109,0.00016438,2]
[400757458,1767817841124,-1094.46685109,0.00016438,2]
[400757460,1767817841134,-1094.46685109,0.00016438,2]
[400757462,1767817841143,-1094.46685109,0.00016438,2]
[400757464,1767817841152,-1094.46685109,0.00016438,2]
[400757466,1767817841161,-1094.46685109,0.00016438,2]
[400757468,1767817841170,-1094.46685109,0.00016438,2]
[400757470,1767817841180,-1094.46685109,0.00016438,2]
[400757472,1767817841189,-1094.46685109,0.00016438,2]
[400757474,1767817841198,-1094.46685109,0.00016438,2]
[400757476,1767817841208,-1094.46685109,0.00016438,2]
[400757478,1767817841218,-1094.46685109,0.00016438,2]
[400757480,1767817841227,-1094.46685109,0.00016438,2]
[400757482,1767817841236,-1094.46685109,0.00016438,2]
[400757484,1767817841246,-1094.46685109,0.00016438,2]
[400757486,1767817841255,-1094.46685109,0.00016438,2]
[400757488,1767817841264,-1094.46685109,0.00016438,2]
[400757490,1767817841274,-1094.46685109,0.00016438,2]
[400757492,1767817841284,-1094.46685109,0.00016438,2]
[400757494,1767817841294,-1094.46685109,0.00016438,2]
[400757496,1767817841303,-1094.46685109,0.00016438,2]
[400757498,1767817841312,-1094.46685109,0.00016438,2]
[400757500,1767817841321,-1094.46685109,0.00016438,2]
[400757502,1767817841330,-1094.46685109,0.00016438,2]
[400757504,1767817841339,-1094.46685109,0.00016438,2]
[400757506,1767817841348,-1094.46685106,0.00016438,2]
[400757508,1767817841361,-1094.46685106,0.00016438,2]
[400757510,1767817841371,-1094.46685106,0.00016438,2]
[400757512,1767817841380,-1094.46685106,0.00016438,2]
[400757514,1767817841389,-1094.46685106,0.00016438,2]
[400757516,1767817841398,-800.0,0.00016438,2]
[400757518,1767817841408,-165.16,0.0001644,2]
[400757520,1767817841417,-1623.07,0.00016442,2]
[400757522,1767817841426,-300.0,0.00016458,2]
[400757524,1767817841435,-420.0,0.00016494,2]
[400757526,1767817841444,-300.0,0.00016507,2]
[400757528,1767817841454,-17081.84,0.00016509,2]
[400757530,1767817841463,-300.0,0.0001651,2]
[400757532,1767817841472,-1068.29795681,0.00016559,2]
[400757534,1767817841482,-595.37131296,0.00016561,2]
[400757536,1767817841492,-300.0,0.00016566,2]
[400757538,1767817841501,-1680.0,0.00016577,2]
[400757540,1767817841510,-600.0,0.00016578,2]
[400757542,1767817841520,-600.0,0.00016578,2]
[400757544,1767817841530,-600.0,0.00016578,2]
[400757546,1767817841539,-250.0,0.00016578,2]
[400757548,1767817841548,-195.0,0.00016578,2]
[400757550,1767817841558,-600.0,0.00016578,2]
[400757552,1767817841567,-639.05245982,0.00016578,2]
[400757554,1767817841576,-300.0,0.00016582,2]
[400757556,1767817841586,-300.0,0.00016583,2]
[400757558,1767817841596,-300.0,0.00016607,2]
[400757560,1767817841605,-313.10017597,0.00016615,2]
[400757562,1767817841616,-300.0,0.00016621,2]
[400757564,1767817841626,-300.0,0.00016642,2]
[400757566,1767817841636,-500.0,0.00016643,2]
[400757568,1767817841645,-322.49416926,0.00016643,2]
[400757570,1767817841655,-507.8387061,0.00016643,2]
[400757572,1767817841664,-500.0,0.00016643,2]
[400757574,1767817841673,-300.0,0.00016649,2]
[400757576,1767817841682,-500.0,0.00016657,2]
[400757578,1767817841692,-500.0,0.00016657,2]
[400757580,1767817841702,-500.0,0.00016657,2]
[400757582,1767817841711,-500.0,0.00016657,2]
[400757584,1767817841720,-512.0,0.00016657,2]
[400757586,1767817841734,-487.0,0.00016657,2]
[400757588,1767817841743,-150.0,0.00016657,2]
[400757590,1767817841752,-500.0,0.00016657,2]
[400757592,1767817841762,-500.0,0.00016657,2]
[400757594,1767817841771,-500.0,0.00016657,2]
[400757596,1767817841780,-150.0,0.00016657,2]
[400757598,1767817841790,-500.0,0.00016684,2]
[400757600,1767817841799,-12301.6933758,0.00016689,2]
[400757602,1767817841808,-166.66,0.00016691,2]
[400757604,1767817841817,-5109.45441568,0.00016707,2]
[400757606,1767817841826,-500.0,0.00016712,2]
[400757608,1767817841836,-500.0,0.00016712,2]
[400757610,1767817841845,-500.0,0.00016712,2]
[400757612,1767817841854,-500.0,0.00016712,2]
[400757614,1767817841863,-512.0,0.00016712,2]
[400757616,1767817841872,-487.0,0.00016712,2]
[400757618,1767817841881,-500.0,0.00016712,2]
[400757620,1767817841890,-500.0,0.00016712,2]
[400757622,1767817841899,-500.0,0.00016712,2]
[400757655,1767817842185,-165.13,0.00016712,2]
[400757657,1767817842195,-1623.07,0.00016716,2]
[400757659,1767817842204,-2000.0,0.00016716,2]
[400757661,1767817842213,-2005.38555235,0.00016716,2]
[400757663,1767817842223,-876.44941512,0.00016716,2]
[400757665,1767817842232,-2000.0,0.00016716,2]
[400757667,1767817842242,-500.0,0.00016716,2]
[400757669,1767817842251,-500.0,0.00016716,2]
[400757672,1767817842260,-1652.22115376,0.00016716,2]
[400757674,1767817842270,-300.0,0.0001673,2]
[400757675,1767817842279,-569.55560122,0.00016732,2]
[400757678,1767817842288,-300.0,0.0001674,2]
[400757680,1767817842299,-500.0,0.00016767,2]
[400757682,1767817842308,-500.0,0.00016767,2]
[400757683,1767817842317,-500.0,0.00016767,2]
[400757686,1767817842326,-500.0,0.00016767,2]
[400757687,1767817842336,-512.0,0.00016767,2]
[400757689,1767817842346,-487.0,0.00016767,2]
[400757691,1767817842355,-350.0,0.00016767,2]
[400757694,1767817842365,-500.0,0.00016767,2]
[400757696,1767817842374,-500.0,0.00016767,2]
[400757698,1767817842383,-300.0,0.0001679,2]
[400757700,1767817842393,-300.0,0.00016811,2]
[400757702,1767817842403,-500.0,0.00016821,2]
[400757704,1767817842414,-500.0,0.00016821,2]
[400757706,1767817842423,-188.33554362,0.00016821,2]
[400757708,1767817842432,-500.0,0.00016821,2]
[400757710,1767817842442,-512.0,0.00016821,2]
[400757712,1767817842451,-487.0,0.00016821,2]
[400757714,1767817842461,-500.0,0.00016821,2]
[400757716,1767817842471,-300.0,0.00016822,2]
[400757719,1767817842480,-300.0,0.00016822,2]
[400757721,1767817842490,-300.0,0.00016829,2]
[400757723,1767817842499,-482.63,0.00016841,2]
[400757724,1767817842508,-521.47480439,0.00016876,2]
[400757726,1767817842518,-500.0,0.00016876,2]
[400757728,1767817842527,-500.0,0.00016876,2]
[400757730,1767817842537,-512.0,0.00016876,2]
[400757733,1767817842547,-487.0,0.00016876,2]
[400757734,1767817842556,-500.0,0.00016876,2]
[400757736,1767817842566,-300.0,0.00016879,2]
[400757739,1767817842576,-321.7,0.00016887,2]
[400757741,1767817842586,-1455.64956121,0.0001689,2]
[400757743,1767817842595,-300.0,0.00016892,2]
[400757744,1767817842605,-313.10017597,0.00016892,2]
[400757746,1767817842614,-634.29540262,0.00016895,2]
[400757748,1767817842624,-120253.45508509,0.000169,2]
[400757751,1767817842634,-500.0,0.00016931,2]
[400757753,1767817842644,-500.0,0.00016931,2]
[400757755,1767817842654,-512.0,0.00016931,2]
[400757757,1767817842664,-487.0,0.00016931,2]
[400757759,1767817842674,-500.0,0.00016931,2]
[400757760,1767817842683,-300.0,0.00016932,2]
[400757762,1767817842693,-3857.0,0.00016955,2]
[400757764,1767817842702,-300.0,0.00016957,2]
[400757767,1767817842712,-1767.0,0.00016959,2]
[400757768,1767817842721,-300.0,0.00016961,2]
[400757770,1767817842734,-300.0,0.00016968,2]
[400757772,1767817842744,-151.0,0.00016983,2]
[400757774,1767817842754,-406.89851448,0.00016986,2]
[400757777,1767817842764,-500.0,0.00016986,2]
[400757779,1767817842775,-512.0,0.00016986,2]
[400757781,1767817842786,-487.0,0.00016986,2]
[400757783,1767817842796,-500.0,0.00016986,2]
[400757785,1767817842807,-424626.28,0.00016986,2]
[400757787,1767817842818,-1623.07,0.0001699,2]
[400757789,1767817842827,-12301.6933758,0.00016992,2]
[400757790,1767817842836,-1767.0,0.00016994,2]
[400757792,1767817842846,-245.43211434,0.00016998,2]
[400757795,1767817842856,-500.001539,0.00017,2]
[400757796,1767817842866,-5109.45441568,0.00017005,2]
[400757798,1767817842875,-1068.29795681,0.00017006,2]
[400757801,1767817842885,-300.0,0.00017028,2]
[400757802,1767817842894,-521.79963653,0.00017041,2]
[400757804,1767817842904,-512.0,0.00017041,2]
[400757807,1767817842918,-487.0,0.00017041,2]
[400757809,1767817842928,-500.0,0.00017041,2]
[400757811,1767817842937,-482.63,0.00017041,2]
[400757813,1767817842947,-482.63,0.00017041,2]
[400757815,1767817842957,-508.54,0.00017041,2]
[400757817,1767817842966,-661.33,0.00017041,2]
[400757819,1767817842975,-661.33,0.00017041,2]
[400757821,1767817842984,-661.33,0.00017041,2]
[400757823,1767817842993,-661.33,0.00017041,2]
[400757825,1767817843002,-181.06,0.00017067,2]
[400757827,1767817843012,-3857.0,0.00017079,2]
[400757829,1767817843021,-300.0,0.00017087,2]
[400757831,1767817843030,-512.0,0.00017095,2]
[400757833,1767817843042,-487.0,0.00017095,2]
[400757835,1767817843052,-500.0,0.00017095,2]
[400757837,1767817843062,-500.0,0.00017096,2]
[400757839,1767817843072,-300.0,0.00017106,2]
[400757841,1767817843081,-1100.0,0.00017107,2]
[400757843,1767817843091,-617.40005154,0.00017109,2]
[400757845,1767817843099,-569.55560122,0.00017121,2]
[400757847,1767817843109,-512.0,0.0001715,2]
[400757849,1767817843118,-487.0,0.0001715,2]
[400757851,1767817843127,-500.0,0.0001715,2]
[400757853,1767817843137,-300.0,0.00017156,2]
[400757855,1767817843146,-151.57655401,0.00017166,2]
[400757856,1767817843154,-171.3,0.00017178,2]
[400757858,1767817843164,-715.75,0.00017178,2]
[400757859,1767817843174,-300.0,0.00017178,2]
[400757860,1767817843183,-150.0,0.00017178,2]
[400757861,1767817843193,-357.88,0.00017178,2]
[400757862,1767817843202,-171.3,0.00017178,2]
[400757863,1767817843211,-150.0,0.00017178,2]
[400757864,1767817843220,-171.3,0.00017178,2]
[400757865,1767817843230,-150.0,0.00017178,2]
[400757866,1767817843240,-171.3,0.00017178,2]
[400757867,1767817843250,-150.0,0.00017178,2]